bitfinex/quotes_SOLUSD_20240908
["timestamp","ask_amount","ask_price","bid_price","bid_amount"]
[1725836948495,15.8555,130.49,130.39,6.3992]
[1725836948702,79.81094488,130.48,130.39,17.47569167]
[1725836948994,77.89407077,130.48,130.41,11.07649167]
[1725836949520,79.81053635,130.48,130.41,11.07649167]
[1725836949899,77.89407077,130.48,130.41,11.07649167]
[1725836950225,77.89407077,130.48,130.43,11.07649167]
[1725836950515,57.89407077,130.48,130.43,11.07649167]
[1725836951517,57.89407077,130.48,130.41,11.07649167]
[1725836951729,57.89407077,130.48,130.42,20.0]
[1725836954904,12.89407077,130.48,130.45,11.07649167]
[1725836955792,1.9162343,130.47,130.42,35.797]
[1725836956018,1.9162343,130.47,130.42,46.87349167]
[1725836956803,46.9162343,130.47,130.42,46.87349167]
[1725836957209,45.0,130.47,130.42,20.0]
[1725836959830,45.0,130.47,130.43,27.71028909]
[1725836961722,45.0,130.47,130.43,28.85555632]
[1725836962116,45.0,130.47,130.44,20.0]
[1725836963111,12.89407077,130.48,130.44,20.0]
[1725836965208,12.89407077,130.48,130.42,27.71028909]
[1725836965413,12.89407077,130.48,130.43,20.0]
[1725836966112,12.89407077,130.48,130.4,20.0]
[1725836966307,12.89407077,130.48,130.42,27.71028909]
[1725836966530,12.89407077,130.48,130.43,20.0]
[1725836970723,1.91619129,130.47,130.43,20.0]
[1725836971059,63.57099129,130.47,130.38,27.71028909]
[1725836971229,6.4631,130.46,130.36,43.36268909]
[1725836971424,46.91725651,130.45,130.36,43.36268909]
[1725836972435,45.0,130.45,130.36,43.36268909]
[1725836972938,46.91708302,130.45,130.36,43.36268909]
[1725836973849,46.91708302,130.45,130.36,27.71028909]
[1725836974052,36.3635,130.44,130.32,22.9321]
[1725836974220,46.91751823,130.43,130.33,27.71028909]
[1725836974421,1.9176352,130.42,130.33,27.71028909]
[1725836975223,1.9176352,130.42,130.34,20.0]
[1725836977544,6.107,130.41,130.34,20.0]
[1725836977737,45.0,130.4,130.33,20.0]
[1725836978244,1.91777752,130.39,130.33,20.0]
[1725836978858,1.91777752,130.39,130.32,27.71028909]
[1725836979037,1.91777752,130.39,130.29,6.1503]
[1725836979038,15.0768,130.38,130.3,27.71028909]
[1725836979232,1.91811949,130.37,130.3,27.71028909]
[1725836979558,46.91811949,130.37,130.3,27.71028909]
[1725836979741,45.0,130.37,130.32,27.71028909]
[1725836980627,46.91786029,130.37,130.29,6.1503]
[1725836980829,46.91786029,130.37,130.3,20.0]
[1725836981144,45.0,130.37,130.29,27.71028909]
[1725836981859,46.91817554,130.37,130.29,27.71028909]
[1725836982233,45.0,130.37,130.29,27.71028909]
[1725836982649,45.0,130.37,130.31,27.71028909]
[1725836983645,45.0,130.37,130.33,27.71028909]
[1725836986642,1.53557396,130.36,130.33,27.71028909]
[1725836986857,45.0,130.37,130.33,27.71028909]
[1725836988447,45.0,130.37,130.31,27.71028909]
[1725836989235,1.91820064,130.36,130.31,27.71028909]
[1725836989438,8.58232243,130.35,130.29,27.71028909]
[1725836989653,45.0,130.34,130.31,27.71028909]
[1725836993054,15.0768,130.38,130.33,27.71028909]
[1725836993261,45.0,130.37,130.33,27.71028909]
[1725836998365,1.91794579,130.36,130.33,27.71028909]
[1725836998540,45.0,130.37,130.33,27.71028909]
[1725837002255,45.0,130.37,130.34,11.09908562]
[1725837007254,45.0,130.37,130.36,11.09908562]
[1725837007959,15.9639,130.42,130.36,11.09908562]
[1725837008259,1.91717818,130.41,130.39,11.09908562]
[1725837008574,17.04355555,130.43,130.39,11.09908562]
[1725837008755,1.91735399,130.42,130.39,11.09908562]
[1725837009153,1.91735399,130.42,130.38,11.09908562]
[1725837009463,14.92029026,130.41,130.37,11.09908562]
[1725837009663,45.0,130.4,130.37,11.09908562]
[1725837009862,14.92029026,130.41,130.37,11.09908562]
[1725837011469,14.92029026,130.41,130.39,11.09908562]
[1725837011470,45.0,130.4,130.39,11.09908562]
[1725837012057,45.0,130.4,130.37,27.72894931]
[1725837013174,14.92029026,130.41,130.37,27.72894931]
[1725837013367,14.92029026,130.41,130.39,27.72894931]
[1725837016752,14.92029026,130.41,130.4,20.0]
[1725837017451,16.1296,130.48,130.4,20.0]
[1725837017769,16.1296,130.48,130.43,27.72894931]
[1725837019059,45.0,130.47,130.43,27.72894931]
[1725837020365,45.0,130.47,130.41,27.72894931]
[1725837021574,66.99400402,130.47,130.41,27.72894931]
[1725837021765,8.04899889,130.46,130.41,27.72894931]
[1725837021971,45.0,130.45,130.41,27.72894931]
[1725837022482,45.0,130.46,130.41,27.72894931]
[1725837026578,21.91692502,130.45,130.36,15.089]
[1725837026898,76.91969543,130.44,130.34,27.72894931]
[1725837027056,6.135,130.4,130.34,27.72894931]
[1725837027255,46.91786611,130.39,130.34,27.72894931]
[1725837027656,20.0,130.38,130.32,15.8745]
[1725837027859,46.91836524,130.37,130.3,27.72894931]
[1725837028470,45.0,130.37,130.3,27.72894931]
[1725837029077,1.91828136,130.36,130.3,27.72894931]
[1725837029257,1.91841424,130.35,130.3,27.72894931]
[1725837029463,1.91841424,130.35,130.28,49.95264931]
[1725837029864,46.91841424,130.35,130.28,27.72894931]
[1725837031172,45.0,130.35,130.28,27.72894931]
[1725837031687,46.91856289,130.35,130.28,27.72894931]
[1725837031886,45.0,130.35,130.3,27.72894931]
[1725837033067,46.53512444,130.35,130.25,22.4592]
[1725837033387,46.53512444,130.35,130.28,27.72894931]
[1725837034289,52.67242444,130.35,130.26,27.72894931]
[1725837034493,36.90174484,130.34,130.26,27.72894931]
[1725837034819,63.36576756,130.33,130.26,27.72894931]
[1725837034997,15.99585626,130.32,130.26,27.72894931]
[1725837035170,45.0,130.31,130.26,27.72894931]
[1725837038091,45.0,130.31,130.25,43.87804931]
[1725837038396,1.91900473,130.3,130.25,43.87804931]
[1725837038595,1.91900473,130.3,130.25,27.72894931]
[1725837038888,1.91903387,130.29,130.25,27.72894931]
[1725837039104,15.45000997,130.3,130.25,27.72894931]
[1725837039282,46.91909261,130.29,130.25,27.72894931]
[1725837039473,46.91909261,130.29,130.22,21.9947]
[1725837039802,46.91909261,130.29,130.23,27.72894931]
[1725837040005,45.0,130.29,130.23,27.72894931]
[1725837040571,45.0,130.29,130.24,20.0]
[1725837041090,45.0,130.29,130.25,27.72894931]
[1725837041476,45.0,130.29,130.27,27.72894931]
[1725837045093,45.0,130.29,130.25,27.72894931]
[1725837045301,46.91917883,130.29,130.23,27.72894931]
[1725837046399,45.0,130.29,130.23,27.72894931]
[1725837046604,59.83500215,130.29,130.23,27.72894931]
[1725837046777,1.91937119,130.28,130.23,27.72894931]
[1725837047185,14.84274419,130.28,130.23,27.72894931]
[1725837047391,45.0,130.27,130.23,27.72894931]
[1725837048077,45.0,130.27,130.25,27.72894931]
[1725837048904,45.0,130.27,130.19,15.0342]
[1725837048905,45.0,130.27,130.23,27.72894931]
[1725837049992,45.0,130.27,130.25,27.72894931]
[1725837051381,29.62,130.27,130.25,27.72894931]
[1725837052685,29.62,130.27,130.23,27.72894931]
[1725837057189,29.62,130.27,130.25,27.72894931]
[1725837058691,29.62,130.27,130.23,27.72894931]
[1725837062406,1.91947428,130.26,130.21,27.72894931]
[1725837062583,15.82347782,130.26,130.21,27.72894931]
[1725837062787,45.0,130.25,130.21,27.72894931]
[1725837062987,1.91991897,130.24,130.19,27.72894931]
[1725837063213,1.92008552,130.23,130.19,27.72894931]
[1725837063515,15.38,130.24,130.15,6.1204]
[1725837063688,45.0,130.23,130.17,27.72894931]
[1725837064322,45.0,130.23,130.19,27.72894931]
[1725837065408,45.0,130.23,130.17,27.72894931]
[1725837065608,1.92035513,130.22,130.17,27.72894931]
[1725837066401,1.92035513,130.22,130.15,27.72894931]
[1725837066623,35.38590384,130.22,130.15,27.72894931]
[1725837066904,58.66702371,130.21,130.15,27.72894931]
[1725837067110,13.34381644,130.2,130.15,27.72894931]
[1725837067418,45.0,130.19,130.15,27.72894931]
[1725837067727,16.332,130.18,130.11,27.72894931]
[1725837068014,16.332,130.18,130.13,27.72894931]
[1725837068015,45.0,130.17,130.13,27.72894931]
[1725837068791,45.0,130.17,130.15,27.72894931]
[1725837069418,13.3254665,130.18,130.15,27.72894931]
[1725837070992,13.3254665,130.18,130.1,16.307919]
[1725837071304,45.0,130.17,130.14,27.72894931]
[1725837076910,13.3254665,130.18,130.14,27.72894931]
[1725837077109,13.3254665,130.18,130.16,27.72894931]
[1725837078694,26.84205159,130.24,130.16,43.09534931]
[1725837078695,3.1,130.24,130.16,43.09534931]
[1725837078896,14.87204066,130.26,130.21,27.72894931]
[1725837079726,12.95191098,130.26,130.21,27.72894931]
[1725837080394,12.95191098,130.26,130.23,27.72894931]
[1725837080896,12.95191098,130.26,130.25,27.72894931]
[1725837082629,12.95191098,130.26,130.2,6.1483]
[1725837082929,12.95191098,130.26,130.23,27.72894931]
[1725837084925,12.95191098,130.26,130.25,27.72894931]
[1725837085099,57.95191098,130.26,130.25,27.72894931]
[1725837085515,12.95191098,130.26,130.25,27.72894931]
[1725837085823,16.1065,130.3,130.25,27.72894931]
[1725837086120,45.0,130.29,130.25,27.72894931]
[1725837086294,46.91933812,130.29,130.23,27.72894931]
[1725837090625,20.0,130.28,130.16,21.7244]
[1725837090803,46.92006476,130.27,130.2,27.72894931]
[1725837091128,1.92008739,130.26,130.2,27.72894931]
[1725837092430,53.15102011,130.27,130.2,27.72894931]
[1725837092729,1.92001899,130.26,130.2,27.72894931]
[1725837092930,53.15101899,130.27,130.2,27.72894931]
[1725837095913,15.6822,130.25,130.19,27.72894931]
[1725837096121,46.92022585,130.24,130.19,27.72894931]
[1725837096528,45.0,130.24,130.19,27.72894931]
[1725837097831,15.6822,130.25,130.21,27.72894931]
[1725837099719,45.0,130.24,130.21,27.72894931]
[1725837101334,45.0,130.24,130.23,27.72894931]
[1725837101509,21.91986913,130.28,130.23,27.72894931]
[1725837101710,45.0,130.27,130.23,27.72894931]
[1725837102612,45.0,130.27,130.2,27.72894931]
[1725837102613,1.91968831,130.26,130.2,27.72894931]
[1725837103011,46.91987012,130.27,130.2,27.72894931]
[1725837103210,46.91987012,130.27,130.22,27.72894931]
[1725837103407,45.0,130.27,130.22,27.72894931]
[1725837104532,45.0,130.27,130.2,27.72894931]
[1725837104533,13.12156106,130.29,130.26,27.72894931]
[1725837105920,45.0,130.28,130.26,27.72894931]
[1725837106119,45.0,130.28,130.24,27.72894931]
[1725837106530,1.9195211,130.27,130.24,27.72894931]
[1725837106747,45.0,130.28,130.24,27.72894931]
[1725837109237,1.91951032,130.27,130.24,27.72894931]
[1725837109444,1.91961349,130.26,130.22,27.72894931]
[1725837109639,1.91961349,130.26,130.18,21.7806]
[1725837109640,18.58491349,130.26,130.18,21.7806]
[1725837109876,45.0,130.25,130.2,27.72894931]
[1725837110938,1.92011814,130.24,130.2,27.72894931]
[1725837111234,1.92013027,130.23,130.2,27.72894931]
[1725837111420,46.92013027,130.25,130.2,27.72894931]
[1725837111617,45.0,130.25,130.2,27.72894931]
[1725837113547,1.91996332,130.24,130.2,27.72894931]
[1725837113724,1.9201172,130.23,130.2,27.72894931]
[1725837114539,46.92011647,130.25,130.2,27.72894931]
[1725837114739,13.12156106,130.29,130.2,27.72894931]
[1725837114740,13.12156106,130.29,130.24,27.72894931]
[1725837115722,15.0411899,130.29,130.22,27.72894931]
[1725837117036,45.0,130.28,130.22,27.72894931]
[1725837117949,58.79349178,130.28,130.22,27.72894931]
[1725837118145,58.79349178,130.28,130.24,27.72894931]
[1725837120132,13.79349178,130.28,130.26,27.72894931]
[1725837120848,15.96747371,130.32,130.26,27.72894931]
[1725837121053,15.9674734,130.32,130.2,21.5471]
[1725837121231,13.75277351,130.31,130.26,27.72894931]
[1725837121432,13.75277351,130.31,130.28,27.72894931]
[1725837124557,13.75277351,130.31,130.3,27.72894931]
[1725837124752,58.75277351,130.31,130.3,27.72894931]
[1725837125854,58.75277351,130.31,130.25,22.8609]
[1725837126063,45.0,130.3,130.28,27.72894931]
[1725837128770,13.75277351,130.31,130.28,27.72894931]
[1725837128937,13.75277351,130.31,130.3,27.72894931]
[1725837130841,58.75277351,130.31,130.28,27.72894931]
[1725837131159,45.0,130.3,130.28,27.72894931]
[1725837131454,58.75277351,130.31,130.28,27.72894931]
[1725837132258,45.0,130.3,130.28,27.72894931]
[1725837133354,1.91900088,130.29,130.21,22.0852]
[1725837133558,1.91900088,130.29,130.25,27.72894931]
[1725837135062,45.0,130.3,130.25,27.72894931]
[1725837135368,45.0,130.3,130.29,27.72894931]
[1725837135542,15.35202016,130.34,130.29,27.72894931]
[1725837135864,15.35202016,130.34,130.31,27.72894931]
[1725837136663,15.35202016,130.34,130.33,27.72894931]
[1725837136861,16.54,130.36,130.33,27.72894931]
[1725837137159,25.02799881,130.39,130.33,27.72894931]
[1725837137383,16.6563,130.39,130.35,27.72894931]
[1725837137669,16.09761474,130.4,130.35,27.72894931]
[1725837138247,16.09761474,130.4,130.32,15.0593]
[1725837138248,16.09761474,130.4,130.37,27.72894931]
[1725837138765,16.09761474,130.4,130.32,15.0593]
[1725837138935,1.91832658,130.39,130.28,15.027]
[1725837139138,21.49694454,130.39,130.28,15.027]
[1725837139342,6.3999,130.36,130.29,27.72894931]
[1725837139654,1.53498646,130.35,130.29,27.72894931]
[1725837139977,46.53498646,130.35,130.29,27.72894931]
[1725837140144,46.53498646,130.35,130.28,15.027]
[1725837140346,46.53498646,130.35,130.28,27.72894931]
[1725837143076,20.0,130.34,130.28,27.72894931]
[1725837143246,46.91879195,130.33,130.28,27.72894931]
[1725837143448,1.91878513,130.32,130.28,27.72894931]
[1725837143858,1.91878513,130.32,130.26,27.72894931]
[1725837144081,21.91878513,130.32,130.26,27.72894931]
[1725837144259,45.0,130.31,130.23,6.165]
[1725837144462,1.91921693,130.3,130.24,27.72894931]
[1725837144659,1.91923874,130.29,130.24,27.72894931]
[1725837145866,1.9192712,130.3,130.24,27.72894931]
[1725837146674,46.91940665,130.31,130.24,27.72894931]
[1725837148263,45.0,130.31,130.24,27.72894931]
[1725837149070,51.5722,130.31,130.24,27.72894931]
[1725837149470,1.91935944,130.3,130.24,27.72894931]
[1725837149663,1.91936014,130.29,130.22,15.0329]
[1725837149865,1.91936014,130.29,130.21,27.72894931]
[1725837150069,46.91936014,130.29,130.21,27.72894931]
[1725837152687,45.0,130.29,130.23,27.72894931]
[1725837153767,45.0,130.29,130.2,33.82154931]
[1725837153768,45.0,130.29,130.25,27.72894931]
[1725837154182,45.0,130.3,130.25,27.72894931]
[1725837154592,15.3471,130.32,130.27,27.72894931]
[1725837155990,15.3471,130.32,130.24,15.2379]
[1725837155991,45.0,130.31,130.25,27.72894931]
[1725837162176,1.91903258,130.3,130.25,27.72894931]
[1725837162889,45.0,130.31,130.25,27.72894931]
[1725837163984,45.0,130.31,130.27,27.72894931]
[1725837168087,6.4746,130.34,130.29,27.72894931]
[1725837169379,45.0,130.33,130.29,27.72894931]
[1725837171598,1.91854825,130.32,130.24,15.2379]
[1725837171778,46.91891802,130.33,130.25,47.72894931]
[1725837171984,1.91891841,130.32,130.25,47.72894931]
[1725837173803,1.91891841,130.32,130.25,27.72894931]
[1725837175196,53.05762785,130.33,130.25,27.72894931]
[1725837175589,45.0,130.33,130.25,27.72894931]
[1725837178684,1.91900674,130.32,130.25,27.72894931]
[1725837179783,1.41900674,130.32,130.25,27.72894931]
[1725837181584,27.55790674,130.32,130.23,27.72894931]
[1725837181784,15.651,130.3,130.23,27.72894931]
[1725837182210,45.0,130.29,130.23,27.72894931]
[1725837184108,45.0,130.29,130.25,11.11371252]
[1725837184952,15.6632,130.33,130.27,11.11371252]
[1725837185084,15.6632,130.33,130.28,1.53486942]
[1725837185286,36.29456716,130.35,130.32,11.11371252]
[1725837185596,36.29456716,130.35,130.34,11.11371252]
[1725837188197,36.29456716,130.35,130.32,27.74931896]
[1725837193316,15.6632,130.37,130.32,27.74931896]
[1725837193521,45.0,130.36,130.32,27.74931896]
[1725837196326,36.55358703,130.4,130.34,27.74931896]
[1725837196499,36.55358703,130.4,130.36,27.74931896]
[1725837196500,19.94207464,130.39,130.36,27.74931896]
[1725837198202,19.94207464,130.39,130.34,27.74931896]
[1725837198203,21.85975374,130.39,130.34,27.74931896]
[1725837198724,45.0,130.38,130.32,27.74931896]
[1725837198922,1.91798513,130.37,130.32,27.74931896]
[1725837200323,45.0,130.38,130.32,27.74931896]
[1725837202025,64.52788211,130.38,130.32,27.74931896]
[1725837202397,64.52788211,130.38,130.31,27.74931896]
[1725837205819,66.44603926,130.38,130.31,27.74931896]
[1725837206023,64.52788211,130.38,130.31,27.74931896]
[1725837206631,66.44619388,130.38,130.29,27.74931896]
[1725837206810,66.44619388,130.38,130.31,27.74931896]
[1725837208105,66.44619388,130.38,130.32,11.10254514]
[1725837209315,64.52788211,130.38,130.32,11.10254514]
[1725837209812,1.9182635,130.37,130.32,11.10254514]
[1725837210031,66.44614861,130.38,130.32,11.10254514]
[1725837210332,64.52788211,130.38,130.32,11.10254514]
[1725837210706,1.91821733,130.37,130.34,11.10254514]
[1725837212535,46.91821733,130.37,130.34,11.10254514]
[1725837212841,45.0,130.37,130.34,11.10254514]
[1725837218810,19.52788211,130.38,130.36,11.10254514]
[1725837221216,19.52788211,130.38,130.34,11.10254514]
[1725837221421,46.91789937,130.37,130.34,11.10254514]
[1725837222323,46.91789937,130.37,130.28,6.274]
[1725837222517,45.0,130.37,130.28,6.274]
[1725837222840,45.0,130.37,130.31,11.10254514]
[1725837223937,21.4462457,130.38,130.33,11.10254514]
[1725837225245,45.0,130.37,130.33,11.10254514]
[1725837225417,1.91820776,130.36,130.33,11.10254514]
[1725837228043,45.0,130.37,130.33,11.10254514]
[1725837228219,1.91820898,130.36,130.33,11.10254514]
[1725837229750,1.91820789,130.35,130.33,11.10254514]
[1725837230745,45.0,130.37,130.33,11.10254514]
[1725837230925,46.91828133,130.37,130.33,11.10254514]
[1725837231827,45.0,130.37,130.33,11.10254514]
[1725837240653,1.91826656,130.36,130.28,6.274]
[1725837240852,1.91871589,130.35,130.28,17.37654514]
[1725837241054,46.91871589,130.35,130.28,11.10254514]
[1725837241356,62.09771589,130.35,130.28,11.10254514]
[1725837241556,20.0,130.34,130.28,11.10254514]
[1725837241857,46.91883374,130.33,130.26,11.10254514]
[1725837242033,1.91916001,130.32,130.26,11.10254514]
[1725837242633,21.91916001,130.32,130.26,11.10254514]
[1725837242833,45.0,130.31,130.26,11.10254514]
[1725837243060,1.91923315,130.3,130.26,11.10254514]
[1725837243360,46.91923316,130.31,130.26,11.10254514]
[1725837244150,45.0,130.31,130.28,11.10254514]
[1725837255776,15.179,130.35,130.3,11.10254514]
[1725837256068,45.0,130.34,130.3,11.10254514]
[1725837256551,45.0,130.34,130.28,11.10254514]
[1725837262571,45.0,130.34,130.3,11.10254514]
[1725837263563,1.91869355,130.33,130.25,6.3586]
[1725837263875,1.91869355,130.33,130.27,11.10254514]
[1725837264254,57.15895,130.34,130.27,11.10254514]
[1725837264577,26.1385,130.33,130.25,6.3586]
[1725837264757,46.9190613,130.32,130.26,11.10254514]
[1725837265768,45.0,130.32,130.26,11.10254514]
[1725837267163,45.0,130.32,130.28,11.10254514]
[1725837270248,45.0,130.32,130.28,8.60254514]
[1725837272579,15.179,130.35,130.3,11.10254514]
[1725837273465,37.88008615,130.38,130.32,11.10254514]
[1725837273776,20.0,130.37,130.32,11.10254514]
[1725837274278,45.0,130.36,130.32,11.10254514]
[1725837274773,20.0,130.37,130.32,11.10254514]
[1725837275006,35.96168211,130.38,130.32,11.10254514]
[1725837276062,35.96168211,130.38,130.29,16.2426]
[1725837276063,1.91821154,130.37,130.29,16.2426]
[1725837276261,37.88020001,130.38,130.3,11.10254514]
[1725837276462,37.88020001,130.38,130.32,11.10254514]
[1725837276760,45.0,130.37,130.32,11.10254514]
[1725837277570,45.0,130.37,130.3,11.10254514]
[1725837277769,1.91854765,130.36,130.3,11.10254514]
[1725837278174,46.91854634,130.37,130.3,11.10254514]
[1725837280868,45.0,130.37,130.3,11.10254514]
[1725837282578,45.0,130.37,130.32,11.10254514]
[1725837283886,45.0,130.37,130.31,11.10254514]
[1725837284097,22.375,130.35,130.24,6.1075]
[1725837284390,107.33927923,130.34,130.24,11.10254514]
[1725837284594,30.90351279,130.33,130.24,11.10254514]
[1725837284769,66.91927619,130.32,130.24,11.10254514]
[1725837284965,29.93147834,130.31,130.24,11.10254514]
[1725837285168,46.91926661,130.3,130.24,11.10254514]
[1725837285382,29.78775997,130.29,130.24,11.10254514]
[1725837285598,72.10188661,130.28,130.24,11.10254514]
[1725837285772,27.10188661,130.28,130.24,11.10254514]
[1725837288282,27.10188661,130.28,130.26,11.10254514]
[1725837289792,45.0,130.3,130.26,11.10254514]
[1725837290004,72.15954378,130.31,130.26,11.10254514]
[1725837291596,72.15954378,130.31,130.28,11.10254514]
[1725837293300,72.15954378,130.31,130.26,11.10254514]
[1725837293497,1.91898686,130.3,130.26,11.10254514]
[1725837295590,1.91896535,130.29,130.26,11.10254514]
[1725837296396,1.91916834,130.3,130.26,11.10254514]
[1725837296590,1.91924337,130.29,130.24,11.10254514]
[1725837296897,74.07890204,130.31,130.24,11.10254514]
[1725837300695,16.446,130.3,130.22,11.10254514]
[1725837300898,46.91955281,130.29,130.21,6.6441]
[1725837301218,45.0,130.29,130.25,11.10254514]
[1725837301513,27.15954378,130.31,130.27,11.10254514]
[1725837301707,27.15954378,130.31,130.29,11.10254514]
[1725837306721,27.15954378,130.31,130.3,15.9326]
[1725837306899,45.06276717,130.38,130.3,15.9326]
[1725837307104,20.0,130.37,130.32,11.10254514]
[1725837307318,1.91831038,130.36,130.32,11.10254514]
[1725837307615,1.91831019,130.35,130.3,27.03514514]
[1725837307815,46.91831019,130.35,130.3,27.03514514]
[1725837308013,46.91831019,130.35,130.3,11.10254514]
[1725837308197,1.91831019,130.35,130.3,11.10254514]
[1725837309595,21.91831019,130.35,130.3,11.10254514]
[1725837309816,45.0,130.34,130.3,11.10254514]
[1725837310299,1.91868742,130.33,130.3,11.10254514]
[1725837310700,45.0,130.34,130.3,11.10254514]
[1725837311519,1.91868108,130.33,130.3,11.10254514]
[1725837312718,1.91868108,130.33,130.28,11.10254514]
[1725837313019,1.918721,130.32,130.27,27.69984514]
[1725837313200,1.918721,130.32,130.26,11.10254514]
[1725837313400,46.918721,130.32,130.26,11.10254514]
[1725837314200,46.918721,130.32,130.24,27.78073289]
[1725837314423,45.0,130.32,130.24,27.78073289]
[1725837314721,45.0,130.32,130.26,27.78073289]
[1725837315515,20.0,130.33,130.28,27.78073289]
[1725837315819,20.0,130.34,130.28,27.78073289]
[1725837316997,46.9187966,130.33,130.26,27.78073289]
[1725837317197,1.91904331,130.32,130.26,27.78073289]
[1725837317500,1.91904331,130.32,130.24,27.78073289]
[1725837318230,37.22204331,130.32,130.23,21.5107]
[1725837318527,45.0,130.31,130.23,15.1645]
[1725837318709,1.9196752,130.3,130.23,15.1645]
[1725837318895,1.91967519,130.29,130.23,15.1645]
[1725837319405,46.91967519,130.29,130.23,15.1645]
[1725837320930,45.0,130.29,130.23,15.1645]
[1725837321919,46.91949593,130.29,130.22,27.78073289]
[1725837322429,20.0,130.28,130.2,49.41353289]
[1725837322625,46.91972975,130.27,130.2,49.41353289]
[1725837322832,1.91972975,130.26,130.2,49.41353289]
[1725837323414,45.0,130.27,130.2,49.41353289]
[1725837325135,45.0,130.27,130.22,27.78073289]
[1725837328728,46.91965244,130.27,130.22,27.78073289]
[1725837328933,45.0,130.27,130.22,27.78073289]
[1725837330331,26.923596,130.26,130.22,27.78073289]
[1725837330531,46.91972908,130.25,130.2,49.41353289]
[1725837331606,46.91972908,130.25,130.2,27.78073289]
[1725837331813,26.2099608,130.24,130.18,27.78073289]
[1725837332012,45.0,130.23,130.18,27.78073289]
[1725837332933,46.92014436,130.23,130.18,27.78073289]
[1725837333232,45.0,130.23,130.18,27.78073289]
[1725837333942,72.35863526,130.23,130.18,27.78073289]
[1725837334142,70.43832872,130.23,130.18,27.78073289]
[1725837334609,27.42723206,130.22,130.18,27.78073289]
[1725837334812,45.0,130.21,130.18,27.78073289]
[1725837336113,45.0,130.21,130.19,11.12265169]
[1725837337132,45.0,130.21,130.17,15.7008]
[1725837337337,45.0,130.21,130.14,16.2727]
[1725837337551,45.0,130.21,130.17,11.12265169]
[1725837338536,45.0,130.21,130.14,16.2727]
[1725837338742,24.3963628,130.2,130.16,11.12265169]
[1725837338943,45.0,130.19,130.16,11.12265169]
[1725837340227,45.0,130.19,130.14,16.2727]
[1725837340428,45.0,130.19,130.17,11.12265169]
[1725837341448,24.3963628,130.2,130.17,11.12265169]
[1725837342745,45.0,130.19,130.17,11.12265169]
[1725837343349,24.3963628,130.2,130.17,11.12265169]
[1725837344547,24.3963628,130.2,130.19,11.12265169]
[1725837350938,24.3963628,130.2,130.14,17.80874661]
[1725837351143,24.3963628,130.2,130.19,11.12265169]
[1725837351658,22.05840424,130.26,130.19,11.12265169]
[1725837351841,45.0,130.25,130.19,11.12265169]
[1725837352439,67.07391284,130.25,130.19,11.12265169]
[1725837353745,1.92006297,130.24,130.15,20.0]
[1725837354060,1.92021586,130.23,130.18,11.12265169]
[1725837354435,22.05482849,130.24,130.22,11.12265169]
[1725837355149,22.05482849,130.24,130.19,15.5751]
[1725837355469,22.05482849,130.24,130.22,11.12265169]
[1725837356453,45.0,130.23,130.22,11.12265169]
[1725837358862,22.05482849,130.24,130.22,11.12265169]
[1725837361368,23.62168273,130.27,130.22,11.12265169]
[1725837362448,45.0,130.26,130.22,11.12265169]
[1725837363240,23.62168273,130.27,130.24,11.12265169]
[1725837363444,23.62168273,130.27,130.23,11.12265169]
[1725837364566,45.0,130.26,130.23,11.12265169]
[1725837367156,1.91972242,130.25,130.21,11.12265169]
[1725837368172,45.0,130.26,130.21,11.12265169]
[1725837368343,46.91991116,130.26,130.21,11.12265169]
[1725837368675,45.0,130.26,130.21,11.12265169]
[1725837368975,23.62168273,130.27,130.23,11.12265169]
[1725837370471,45.0,130.26,130.23,11.12265169]
[1725837370651,23.62168273,130.27,130.25,11.12265169]
[1725837373570,24.92138884,130.34,130.26,20.0]
[1725837373746,45.68197875,130.35,130.31,11.12265169]
[1725837374949,1.91841496,130.34,130.31,11.12265169]
[1725837375674,45.68197875,130.35,130.27,6.5004]
[1725837375979,45.68197875,130.35,130.29,11.12265169]
[1725837376186,45.68197875,130.35,130.28,27.764378]
[1725837376665,45.0,130.34,130.28,27.764378]
[1725837376971,24.3106717,130.33,130.28,27.764378]
[1725837377180,45.0,130.32,130.28,27.764378]
[1725837377352,24.3106717,130.33,130.3,27.764378]
[1725837377969,45.0,130.32,130.3,27.764378]
[1725837380057,24.3106717,130.33,130.3,27.764378]
[1725837380365,24.3106717,130.33,130.28,44.297178]
[1725837380366,45.0,130.32,130.28,44.297178]
[1725837394502,24.3106717,130.33,130.3,27.764378]